[Event "*** MasterClass Titled Tuesday Blitz"]
[Site "Chess.com"]
[Date "2017.08.01"]
[Round "3"]
[White "Witik"]
[Black "olomi007"]
[Result "1-0"]
[WhiteElo "2575"]
[BlackElo "2473"]
[TimeControl "180+2"]
[EndTime "13:37:14 PDT"]
[Termination "Witik won by checkmate"]

1. e4 {[%clk 0:03:01.9]} 1... c5 {[%clk 0:03:00.4]} 2. Nf3 {[%clk 0:03:03]} 2...
Nc6 {[%clk 0:03:01.3]} 3. Bb5 {[%clk 0:03:03.5]} 3... g6 {[%clk 0:03:02.5]} 4.
Bxc6 {[%clk 0:03:04.3]} 4... bxc6 {[%clk 0:03:02.7]} 5. O-O {[%clk 0:03:04.4]}
5... Bg7 {[%clk 0:03:03.7]} 6. Re1 {[%clk 0:03:05.4]} 6... Nf6 {[%clk
0:03:04.4]} 7. c3 {[%clk 0:03:05.3]} 7... O-O {[%clk 0:02:57.9]} 8. h3 {[%clk
0:03:06]} 8... e5 {[%clk 0:02:39]} 9. d3 {[%clk 0:02:46.9]} 9... d6 {[%clk
0:02:35.6]} 10. a3 {[%clk 0:02:47.1]} 10... a5 {[%clk 0:02:32.2]} 11. a4 {[%clk
0:02:48]} 11... Ba6 {[%clk 0:02:27.3]} 12. Na3 {[%clk 0:02:48.5]} 12... Nd7
{[%clk 0:02:22]} 13. Qc2 {[%clk 0:02:43.6]} 13... f5 {[%clk 0:02:20.1]} 14. Nd2
{[%clk 0:02:32.7]} 14... f4 {[%clk 0:02:18.2]} 15. Nac4 {[%clk 0:02:21.6]} 15...
f3 {[%clk 0:02:10.2]} 16. Nxf3 {[%clk 0:02:09.9]} 16... Rxf3 {[%clk 0:02:10.4]}
17. gxf3 {[%clk 0:02:11]} 17... Qh4 {[%clk 0:02:10.1]} 18. Nxd6 {[%clk
0:02:04.9]} 18... Qxh3 {[%clk 0:02:01.6]} 19. Re3 {[%clk 0:01:46.7]} 19... Qe6
{[%clk 0:01:53.6]} 20. Nc4 {[%clk 0:01:44.3]} 20... Bxc4 {[%clk 0:01:42.1]} 21.
dxc4 {[%clk 0:01:45]} 21... Rf8 {[%clk 0:01:43.3]} 22. Rd3 {[%clk 0:01:39.2]}
22... Nf6 {[%clk 0:01:43.3]} 23. Bg5 {[%clk 0:01:30.8]} 23... Nh5 {[%clk
0:01:40.9]} 24. Rad1 {[%clk 0:01:27.1]} 24... h6 {[%clk 0:01:41.1]} 25. Bc1
{[%clk 0:01:25.6]} 25... Qh3 {[%clk 0:01:40.1]} 26. Qe2 {[%clk 0:01:05.9]} 26...
Nf4 {[%clk 0:01:40.4]} 27. Bxf4 {[%clk 0:01:04.3]} 27... Rxf4 {[%clk 0:01:42.3]}
28. Qf1 {[%clk 0:00:54]} 28... Qh5 {[%clk 0:01:41.4]} 29. Rd8+ {[%clk
0:00:49.3]} 29... Kh7 {[%clk 0:01:42.1]} 30. R1d3 {[%clk 0:00:49.3]} 30... Rxf3
{[%clk 0:01:25.6]} 31. Rxf3 {[%clk 0:00:50.2]} 31... Qxf3 {[%clk 0:01:25.5]} 32.
Qg2 {[%clk 0:00:48]} 32... Qf4 {[%clk 0:01:19.2]} 33. Rd7 {[%clk 0:00:46.3]}
33... Qc1+ {[%clk 0:01:15]} 34. Kh2 {[%clk 0:00:45.3]} 34... Qxb2 {[%clk
0:01:16.2]} 35. Rd6 {[%clk 0:00:39.4]} 35... g5 {[%clk 0:01:13.6]} 36. Qf3
{[%clk 0:00:37.5]} 36... Qb8 {[%clk 0:01:10.7]} 37. Rd7 {[%clk 0:00:31.1]} 37...
Qe8 {[%clk 0:00:51]} 38. Qf5+ {[%clk 0:00:31.5]} 38... Kg8 {[%clk 0:00:51.4]}
39. Kg2 {[%clk 0:00:30.1]} 39... h5 {[%clk 0:00:48.8]} 40. Rc7 {[%clk
0:00:28.9]} 40... Bf8 {[%clk 0:00:43.2]} 41. Qh7# {[%clk 0:00:27.3]} 1-0

[Event "*** MasterClass Titled Tuesday Blitz"]
[Site "Chess.com"]
[Date "2017.08.01"]
[Round "3"]
[White "stefanodinn"]
[Black "hermionegrangermagic"]
[Result "0-1"]
[WhiteElo "2170"]
[BlackElo "2343"]
[TimeControl "180+2"]
[EndTime "13:37:26 PDT"]
[Termination "hermionegrangermagic won by checkmate"]

1. e4 {[%clk 0:03:01.9]} 1... c5 {[%clk 0:02:58.3]} 2. Nf3 {[%clk 0:03:01.6]}
2... Nc6 {[%clk 0:02:58.3]} 3. d4 {[%clk 0:03:02.5]} 3... cxd4 {[%clk
0:03:00.2]} 4. Nxd4 {[%clk 0:03:03.6]} 4... e5 {[%clk 0:03:01.8]} 5. Nb5 {[%clk
0:03:04.1]} 5... d6 {[%clk 0:03:03.1]} 6. c4 {[%clk 0:03:04.3]} 6... f5 {[%clk
0:02:59.5]} 7. exf5 {[%clk 0:02:33.2]} 7... Bxf5 {[%clk 0:02:57.3]} 8. Bd3
{[%clk 0:02:32.8]} 8... Be6 {[%clk 0:02:55.5]} 9. O-O {[%clk 0:02:31.9]} 9...
Nf6 {[%clk 0:02:56.5]} 10. N1c3 {[%clk 0:02:30]} 10... a6 {[%clk 0:02:56.8]} 11.
Na3 {[%clk 0:02:30.7]} 11... Be7 {[%clk 0:02:55.4]} 12. b3 {[%clk 0:02:29.2]}
12... O-O {[%clk 0:02:55.8]} 13. Bb2 {[%clk 0:02:29.7]} 13... Nd4 {[%clk
0:02:48.6]} 14. Nc2 {[%clk 0:02:28]} 14... Nxc2 {[%clk 0:02:37.3]} 15. Qxc2
{[%clk 0:02:20.9]} 15... Qe8 {[%clk 0:02:32.4]} 16. Qe2 {[%clk 0:01:50.3]} 16...
Bg4 {[%clk 0:02:17.3]} 17. f3 {[%clk 0:01:50.1]} 17... Be6 {[%clk 0:02:15.1]}
18. Ne4 {[%clk 0:01:45.5]} 18... Nh5 {[%clk 0:02:12]} 19. g3 {[%clk 0:01:45.1]}
19... Qf7 {[%clk 0:02:06.8]} 20. Rad1 {[%clk 0:01:30.7]} 20... Rfd8 {[%clk
0:01:39.9]} 21. Bb1 {[%clk 0:01:28.1]} 21... b5 {[%clk 0:01:36.7]} 22. cxb5
{[%clk 0:01:28.3]} 22... axb5 {[%clk 0:01:31.8]} 23. Qxb5 {[%clk 0:00:41.9]}
23... d5 {[%clk 0:01:28.5]} 24. Nc3 {[%clk 0:00:39.1]} 24... Rac8 {[%clk
0:01:12.3]} 25. Qe2 {[%clk 0:00:26.8]} 25... Bh3 {[%clk 0:01:01.1]} 26. Rfe1
{[%clk 0:00:21.5]} 26... Bc5+ {[%clk 0:00:51]} 27. Kh1 {[%clk 0:00:22.2]} 27...
Bd4 {[%clk 0:00:51.7]} 28. Na4 {[%clk 0:00:18.9]} 28... Bxb2 {[%clk 0:00:50.1]}
29. Nxb2 {[%clk 0:00:19.9]} 29... Re8 {[%clk 0:00:47.2]} 30. Qd3 {[%clk
0:00:13.4]} 30... e4 {[%clk 0:00:29.6]} 31. fxe4 {[%clk 0:00:09.7]} 31... Qf2
{[%clk 0:00:24.3]} 32. Qe2 {[%clk 0:00:05.5]} 32... Bg2# {[%clk 0:00:24.8]} 0-1

[Event "*** MasterClass Titled Tuesday Blitz"]
[Site "Chess.com"]
[Date "2017.08.01"]
[Round "3"]
[White "oskariot"]
[Black "swayamsm"]
[Result "0-1"]
[WhiteElo "2498"]
[BlackElo "2439"]
[TimeControl "180+2"]
[EndTime "13:37:28 PDT"]
[Termination "swayamsm won by checkmate"]

1. c4 {[%clk 0:03:01.9]} 1... Nf6 {[%clk 0:03:00.2]} 2. Nc3 {[%clk 0:03:01.4]}
2... g6 {[%clk 0:02:59.7]} 3. e4 {[%clk 0:03:00.5]} 3... Bg7 {[%clk 0:03:01.2]}
4. d4 {[%clk 0:03:01.5]} 4... d6 {[%clk 0:03:01.8]} 5. Nf3 {[%clk 0:03:02.8]}
5... O-O {[%clk 0:03:03]} 6. Be2 {[%clk 0:03:04.4]} 6... e5 {[%clk 0:03:01]} 7.
Be3 {[%clk 0:03:03.9]} 7... Ng4 {[%clk 0:02:48.8]} 8. Bg5 {[%clk 0:03:03.5]}
8... f6 {[%clk 0:02:49.3]} 9. Bh4 {[%clk 0:03:04.8]} 9... Nc6 {[%clk 0:02:42]}
10. h3 {[%clk 0:02:59.3]} 10... Nh6 {[%clk 0:02:42]} 11. c5 {[%clk 0:02:47.5]}
11... dxc5 {[%clk 0:02:12.8]} 12. dxe5 {[%clk 0:02:47.3]} 12... Qxd1+ {[%clk
0:02:12.8]} 13. Rxd1 {[%clk 0:02:48]} 13... Nxe5 {[%clk 0:02:10.1]} 14. Nxe5
{[%clk 0:02:49.1]} 14... fxe5 {[%clk 0:02:11.3]} 15. Be7 {[%clk 0:02:23.9]}
15... Re8 {[%clk 0:02:08.9]} 16. Bc4+ {[%clk 0:02:24.5]} 16... Kh8 {[%clk
0:02:09.3]} 17. Nd5 {[%clk 0:02:08.8]} 17... Be6 {[%clk 0:02:07.6]} 18. Nxc7
{[%clk 0:01:53.6]} 18... Bxc4 {[%clk 0:02:06.8]} 19. Nxe8 {[%clk 0:01:32]} 19...
Rxe8 {[%clk 0:02:05]} 20. Bxc5 {[%clk 0:01:33.3]} 20... b6 {[%clk 0:02:01.8]}
21. Be3 {[%clk 0:01:33.6]} 21... Ng8 {[%clk 0:01:45.4]} 22. b3 {[%clk
0:01:33.7]} 22... Bb5 {[%clk 0:01:44.4]} 23. f3 {[%clk 0:01:32.9]} 23... Nf6
{[%clk 0:01:38.8]} 24. Kf2 {[%clk 0:01:33.9]} 24... Kg8 {[%clk 0:01:38.1]} 25.
Rd6 {[%clk 0:01:31.2]} 25... Kf7 {[%clk 0:01:35.2]} 26. Rc1 {[%clk 0:01:26.6]}
26... Re7 {[%clk 0:01:27.7]} 27. Rc8 {[%clk 0:01:22.7]} 27... Ne8 {[%clk
0:01:01.8]} 28. Rdd8 {[%clk 0:01:11.3]} 28... Bf6 {[%clk 0:01:00]} 29. a4 {[%clk
0:01:04.4]} 29... Ba6 {[%clk 0:00:49.7]} 30. Rb8 {[%clk 0:00:56.6]} 30... g5
{[%clk 0:00:20.5]} 31. Bd2 {[%clk 0:00:39.9]} 31... Ng7 {[%clk 0:00:14.7]} 32.
Bb4 {[%clk 0:00:38.2]} 32... Rc7 {[%clk 0:00:15.3]} 33. Rf8+ {[%clk 0:00:37.8]}
33... Kg6 {[%clk 0:00:16.2]} 34. Rbd8 {[%clk 0:00:27.4]} 34... Bxd8 {[%clk
0:00:15.2]} 35. Rxd8 {[%clk 0:00:28]} 35... Rc2+ {[%clk 0:00:16]} 36. Ke3 {[%clk
0:00:28.1]} 36... Ne6 {[%clk 0:00:15.5]} 37. Rd6 {[%clk 0:00:28.7]} 37... Kf7
{[%clk 0:00:16.3]} 38. Rd7+ {[%clk 0:00:29.9]} 38... Kg8 {[%clk 0:00:17.2]} 39.
Rxa7 {[%clk 0:00:31.1]} 39... Re2# {[%clk 0:00:17.6]} 0-1

[Event "*** MasterClass Titled Tuesday Blitz"]
[Site "Chess.com"]
[Date "2017.08.01"]
[Round "3"]
[White "Rumpel-VK"]
[Black "XDPS"]
[Result "1-0"]
[WhiteElo "2432"]
[BlackElo "2512"]
[TimeControl "180+2"]
[EndTime "13:37:32 PDT"]
[Termination "Rumpel-VK won by resignation"]

1. d4 {[%clk 0:03:01.9]} 1... d5 {[%clk 0:03:00.7]} 2. c4 {[%clk 0:03:02.4]}
2... c6 {[%clk 0:03:02.1]} 3. cxd5 {[%clk 0:03:03.3]} 3... cxd5 {[%clk
0:03:02.3]} 4. Bf4 {[%clk 0:03:04.1]} 4... Nc6 {[%clk 0:02:58.8]} 5. e3 {[%clk
0:03:04.5]} 5... Nf6 {[%clk 0:02:59.2]} 6. Nc3 {[%clk 0:03:04.8]} 6... Bf5
{[%clk 0:03:00]} 7. Qb3 {[%clk 0:03:04.4]} 7... Na5 {[%clk 0:03:00.6]} 8. Qa4+
{[%clk 0:03:05]} 8... Bd7 {[%clk 0:03:01.2]} 9. Qc2 {[%clk 0:03:05.6]} 9... e6
{[%clk 0:03:00.1]} 10. Nf3 {[%clk 0:03:00.3]} 10... Bb4 {[%clk 0:03:00.8]} 11.
Bd3 {[%clk 0:02:58.9]} 11... Rc8 {[%clk 0:02:56.8]} 12. O-O {[%clk 0:02:57.7]}
12... O-O {[%clk 0:02:56.2]} 13. Ne5 {[%clk 0:02:54.2]} 13... Bxc3 {[%clk
0:02:47.9]} 14. bxc3 {[%clk 0:02:53.8]} 14... Qe7 {[%clk 0:02:40.7]} 15. Bg5
{[%clk 0:02:51.5]} 15... h6 {[%clk 0:02:23.1]} 16. Bxf6 {[%clk 0:02:36.1]} 16...
gxf6 {[%clk 0:02:22.9]} 17. Nxd7 {[%clk 0:02:31]} 17... Qxd7 {[%clk 0:02:23.6]}
18. Qe2 {[%clk 0:02:29.3]} 18... f5 {[%clk 0:02:22.1]} 19. Rac1 {[%clk 0:02:27]}
19... Qe7 {[%clk 0:02:22.4]} 20. f3 {[%clk 0:02:25.6]} 20... Qg5 {[%clk
0:01:53.3]} 21. e4 {[%clk 0:02:23.8]} 21... f4 {[%clk 0:01:54.7]} 22. Kh1 {[%clk
0:02:17.2]} 22... Nc4 {[%clk 0:01:51.5]} 23. Bxc4 {[%clk 0:02:09.6]} 23... Rxc4
{[%clk 0:01:52]} 24. exd5 {[%clk 0:02:08]} 24... exd5 {[%clk 0:01:46.2]} 25. g3
{[%clk 0:01:53.2]} 25... Rfc8 {[%clk 0:01:44.3]} 26. gxf4 {[%clk 0:01:52.9]}
26... Qxf4 {[%clk 0:01:45.5]} 27. Rg1+ {[%clk 0:01:53.3]} 27... Kf8 {[%clk
0:01:46.3]} 28. Rce1 {[%clk 0:01:46]} 28... Qf6 {[%clk 0:01:44.8]} 29. Qg2
{[%clk 0:01:40.3]} 29... Qg5 {[%clk 0:01:28.2]} 30. Qh3 {[%clk 0:01:40.2]} 30...
Qf6 {[%clk 0:01:25.1]} 31. Qg2 {[%clk 0:01:35.5]} 31... Qg5 {[%clk 0:01:25.8]}
32. Qb2 {[%clk 0:01:36.1]} 32... Qf6 {[%clk 0:01:04.4]} 33. Qa3+ {[%clk
0:01:36.6]} 33... R8c5 {[%clk 0:01:01.5]} 34. dxc5 {[%clk 0:01:37]} 34... Qxf3+
{[%clk 0:01:02.5]} 35. Rg2 {[%clk 0:01:37.8]} 35... Re4 {[%clk 0:00:58.9]} 36.
c6+ {[%clk 0:01:35.5]} 36... Ke8 {[%clk 0:01:00]} 37. Rxe4+ {[%clk 0:01:26.9]}
37... dxe4 {[%clk 0:01:01]} 38. Qxa7 {[%clk 0:01:20]} 38... bxc6 {[%clk
0:00:59.6]} 39. Qf2 {[%clk 0:01:16.7]} 39... Qxc3 {[%clk 0:01:00.6]} 40. Qe2
{[%clk 0:01:13.7]} 40... Qe5 {[%clk 0:00:53.3]} 41. Qc4 {[%clk 0:01:08.6]} 41...
Qd5 {[%clk 0:00:52.6]} 42. Qxd5 {[%clk 0:01:08.4]} 42... cxd5 {[%clk 0:00:54.5]}
43. Rd2 {[%clk 0:01:09.1]} 43... Ke7 {[%clk 0:00:50.2]} 44. Rxd5 {[%clk
0:01:09.5]} 44... Ke6 {[%clk 0:00:52.1]} 45. Rd1 {[%clk 0:01:10.1]} 45... f5
{[%clk 0:00:52.3]} 46. a4 {[%clk 0:01:10.4]} 46... f4 {[%clk 0:00:53.7]} 47. Kg2
{[%clk 0:01:10.9]} 47... Ke5 {[%clk 0:00:53.8]} 48. a5 {[%clk 0:01:09.9]} 48...
h5 {[%clk 0:00:55.3]} 49. a6 {[%clk 0:01:09.6]} 49... h4 {[%clk 0:00:56.7]} 50.
a7 {[%clk 0:01:10.1]} 50... f3+ {[%clk 0:00:58.3]} 51. Kf2 {[%clk 0:01:10.4]}
51... Kf4 {[%clk 0:01:00.2]} 52. a8=Q {[%clk 0:01:08]} 52... e3+ {[%clk
0:01:00.9]} 53. Kg1 {[%clk 0:01:06]} 53... f2+ {[%clk 0:01:01.9]} 54. Kg2 {[%clk
0:01:05.5]} 54... e2 {[%clk 0:01:03.4]} 55. Qf3+ {[%clk 0:01:05]} 55... Kg5
{[%clk 0:01:04.3]} 56. Qxe2 {[%clk 0:01:04.8]} 56... h3+ {[%clk 0:01:05.8]} 57.
Kxh3 {[%clk 0:01:04.8]} 57... f1=Q+ {[%clk 0:01:07.7]} 58. Rxf1 {[%clk 0:01:05]}
58... Kh6 {[%clk 0:01:08.5]} 59. Qe5 {[%clk 0:01:03.4]} 1-0

[Event "*** MasterClass Titled Tuesday Blitz"]
[Site "Chess.com"]
[Date "2017.08.01"]
[Round "3"]
[White "DrVelja"]
[Black "IamSchrodingersCat"]
[Result "0-1"]
[WhiteElo "2518"]
[BlackElo "2435"]
[TimeControl "180+2"]
[EndTime "13:37:37 PDT"]
[Termination "IamSchrodingersCat won by resignation"]

1. e4 {[%clk 0:03:01.9]} 1... c5 {[%clk 0:02:59.8]} 2. Nf3 {[%clk 0:03:01.5]}
2... d6 {[%clk 0:03:00]} 3. d4 {[%clk 0:03:02.7]} 3... cxd4 {[%clk 0:03:02]} 4.
Nxd4 {[%clk 0:03:04.3]} 4... Nf6 {[%clk 0:03:03.1]} 5. Nc3 {[%clk 0:03:05]} 5...
g6 {[%clk 0:03:04.2]} 6. Be3 {[%clk 0:03:03.9]} 6... Bg7 {[%clk 0:03:05.1]} 7.
f3 {[%clk 0:03:05.1]} 7... O-O {[%clk 0:03:05.9]} 8. Qd2 {[%clk 0:03:06.7]} 8...
Nc6 {[%clk 0:03:07.3]} 9. O-O-O {[%clk 0:03:03.4]} 9... d5 {[%clk 0:03:07.7]}
10. Kb1 {[%clk 0:03:03.4]} 10... Nxd4 {[%clk 0:03:08.5]} 11. e5 {[%clk
0:03:04.3]} 11... Nf5 {[%clk 0:03:09.6]} 12. exf6 {[%clk 0:03:05.2]} 12... exf6
{[%clk 0:03:11.6]} 13. Bc5 {[%clk 0:03:03.1]} 13... d4 {[%clk 0:03:12]} 14. Bxf8
{[%clk 0:03:02.3]} 14... Qxf8 {[%clk 0:03:13.9]} 15. Nb5 {[%clk 0:02:54.4]}
15... Ne3 {[%clk 0:03:03.9]} 16. Re1 {[%clk 0:02:47.2]} 16... f5 {[%clk
0:03:03.6]} 17. f4 {[%clk 0:02:29.2]} 17... Qc5 {[%clk 0:02:58.8]} 18. c3 {[%clk
0:02:28.8]} 18... Nxf1 {[%clk 0:02:44.8]} 19. Re8+ {[%clk 0:02:28.1]} 19... Bf8
{[%clk 0:02:45.5]} 20. Qxd4 {[%clk 0:02:10.7]} 20... Qxb5 {[%clk 0:02:31.7]} 21.
Qd8 {[%clk 0:02:10.2]} 21... Qc5 {[%clk 0:01:30.2]} 22. b4 {[%clk 0:01:28.6]}
22... Be6 {[%clk 0:01:14.3]} 23. Qxa8 {[%clk 0:01:05]} 23... Nd2+ {[%clk
0:01:01.6]} 24. Kc2 {[%clk 0:00:41.6]} 24... Qd5 {[%clk 0:00:39.6]} 25. Rxf8+
{[%clk 0:00:33.9]} 25... Kg7 {[%clk 0:00:41]} 26. Rg8+ {[%clk 0:00:34.8]} 26...
Kh6 {[%clk 0:00:42.2]} 27. Qf8+ {[%clk 0:00:26.8]} 27... Kh5 {[%clk 0:00:40.8]}
28. g4+ {[%clk 0:00:18.5]} 28... fxg4 {[%clk 0:00:36.2]} 29. Qc5 {[%clk
0:00:18.9]} 29... Bf5+ {[%clk 0:00:36.1]} 30. Kb2 {[%clk 0:00:12.4]} 30... Qxh1
{[%clk 0:00:34.2]} 31. Rh8 {[%clk 0:00:11.6]} 31... Qb1+ {[%clk 0:00:20.4]} 32.
Ka3 {[%clk 0:00:12.6]} 32... Qc1+ {[%clk 0:00:20.1]} 33. Ka4 {[%clk 0:00:12.9]}
33... Qc2+ {[%clk 0:00:14]} 34. Kb5 {[%clk 0:00:13.7]} 34... Qd3+ {[%clk
0:00:07.5]} 35. Ka5 {[%clk 0:00:13.1]} 35... b6+ {[%clk 0:00:07.6]} 0-1

[Event "*** MasterClass Titled Tuesday Blitz"]
[Site "Chess.com"]
[Date "2017.08.01"]
[Round "3"]
[White "ehrenfeld"]
[Black "Al_Shima"]
[Result "0-1"]
[WhiteElo "2395"]
[BlackElo "2397"]
[TimeControl "180+2"]
[EndTime "13:37:37 PDT"]
[Termination "Al_Shima won by resignation"]

1. e4 {[%clk 0:03:01.9]} 1... d5 {[%clk 0:03:00.5]} 2. exd5 {[%clk 0:03:02.2]}
2... Nf6 {[%clk 0:03:01.4]} 3. d4 {[%clk 0:03:02.4]} 3... Nxd5 {[%clk
0:03:02.5]} 4. Nf3 {[%clk 0:03:02.4]} 4... Bf5 {[%clk 0:03:03.1]} 5. Be2 {[%clk
0:02:58.1]} 5... e6 {[%clk 0:03:04.1]} 6. O-O {[%clk 0:02:58.5]} 6... Be7 {[%clk
0:03:05.4]} 7. c3 {[%clk 0:02:35.2]} 7... O-O {[%clk 0:03:05.6]} 8. Re1 {[%clk
0:02:34.2]} 8... c5 {[%clk 0:03:06.2]} 9. Nbd2 {[%clk 0:02:25.7]} 9... Nc6
{[%clk 0:03:05.5]} 10. Nc4 {[%clk 0:02:25]} 10... Qc7 {[%clk 0:03:04.8]} 11. Ne3
{[%clk 0:02:19.8]} 11... Nxe3 {[%clk 0:02:59.2]} 12. Bxe3 {[%clk 0:02:20.2]}
12... Rfd8 {[%clk 0:02:57.6]} 13. Qa4 {[%clk 0:02:20.4]} 13... cxd4 {[%clk
0:02:40.3]} 14. Nxd4 {[%clk 0:02:20.3]} 14... Nxd4 {[%clk 0:02:40.2]} 15. Bxd4
{[%clk 0:02:20.6]} 15... e5 {[%clk 0:02:31.5]} 16. Be3 {[%clk 0:02:20.4]} 16...
a6 {[%clk 0:02:28.5]} 17. Qb3 {[%clk 0:02:15.2]} 17... b5 {[%clk 0:02:25.4]} 18.
a4 {[%clk 0:02:15.7]} 18... Be6 {[%clk 0:02:21.5]} 19. Qc2 {[%clk 0:02:16]}
19... Bc4 {[%clk 0:02:19.9]} 20. axb5 {[%clk 0:02:08.3]} 20... axb5 {[%clk
0:02:18]} 21. Bf3 {[%clk 0:02:00.6]} 21... Rxa1 {[%clk 0:02:15.3]} 22. Rxa1
{[%clk 0:02:00.4]} 22... Bc5 {[%clk 0:02:15.2]} 23. Bxc5 {[%clk 0:01:51.7]}
23... Qxc5 {[%clk 0:02:15.9]} 24. g3 {[%clk 0:01:48.5]} 24... Bd3 {[%clk
0:02:11]} 25. Qd2 {[%clk 0:01:38.1]} 25... Qe7 {[%clk 0:01:52.6]} 26. Qe3 {[%clk
0:01:30]} 26... e4 {[%clk 0:01:46.7]} 27. Re1 {[%clk 0:01:29]} 27... f5 {[%clk
0:01:47.2]} 28. Bg2 {[%clk 0:01:28.9]} 28... b4 {[%clk 0:01:41.8]} 29. g4 {[%clk
0:01:15.8]} 29... bxc3 {[%clk 0:01:39.6]} 30. bxc3 {[%clk 0:01:16.4]} 30... fxg4
{[%clk 0:01:33.6]} 31. Bxe4 {[%clk 0:01:15.8]} 31... Bxe4 {[%clk 0:01:34.1]} 32.
Qxe4 {[%clk 0:01:17]} 32... Qxe4 {[%clk 0:01:34.9]} 33. Rxe4 {[%clk 0:01:17.4]}
33... Rc8 {[%clk 0:01:32.3]} 34. c4 {[%clk 0:01:15.1]} 34... h5 {[%clk
0:01:32.8]} 35. Kf1 {[%clk 0:01:15.9]} 35... Kf7 {[%clk 0:01:32.8]} 36. Ke2
{[%clk 0:01:16.9]} 36... Kf6 {[%clk 0:01:33.6]} 37. Kd3 {[%clk 0:01:17.8]} 37...
Kg5 {[%clk 0:01:32.6]} 38. Kd4 {[%clk 0:01:08.6]} 38... Kh4 {[%clk 0:01:27.7]}
39. Re5 {[%clk 0:00:59.9]} 39... g6 {[%clk 0:01:27.9]} 40. Re6 {[%clk
0:01:00.4]} 40... Rf8 {[%clk 0:01:21.6]} 41. Ke3 {[%clk 0:00:56.4]} 41... Rf3+
{[%clk 0:01:21.7]} 42. Ke2 {[%clk 0:00:57.5]} 42... Rc3 {[%clk 0:01:22.4]} 43.
Rc6 {[%clk 0:00:48.8]} 43... Rc2+ {[%clk 0:01:22.9]} 44. Kf1 {[%clk 0:00:45.7]}
44... Kh3 {[%clk 0:01:21.5]} 45. Rxg6 {[%clk 0:00:41.8]} 45... Rxc4 {[%clk
0:01:15.1]} 46. Rh6 {[%clk 0:00:41.7]} 46... Rc1+ {[%clk 0:01:12.7]} 47. Ke2
{[%clk 0:00:42.4]} 47... Rc5 {[%clk 0:01:13.7]} 48. f4 {[%clk 0:00:25.2]} 48...
Kxh2 {[%clk 0:01:11.6]} 49. Ke3 {[%clk 0:00:24.3]} 49... g3 {[%clk 0:01:12.2]}
50. Rg6 {[%clk 0:00:24.6]} 50... g2 {[%clk 0:01:12.1]} 0-1

[Event "*** MasterClass Titled Tuesday Blitz"]
[Site "Chess.com"]
[Date "2017.08.01"]
[Round "3"]
[White "maciek_92"]
[Black "igorkovalenko"]
[Result "1-0"]
[WhiteElo "2523"]
[BlackElo "2656"]
[TimeControl "180+2"]
[EndTime "13:37:40 PDT"]
[Termination "maciek_92 won by checkmate"]

1. c4 {[%clk 0:02:58.1]} 1... e6 {[%clk 0:03:00.1]} 2. Nf3 {[%clk 0:02:58.7]}
2... b6 {[%clk 0:02:59.6]} 3. g3 {[%clk 0:02:59.6]} 3... Bb7 {[%clk 0:03:01]} 4.
Bg2 {[%clk 0:03:01.3]} 4... Be7 {[%clk 0:03:01.5]} 5. O-O {[%clk 0:03:02.5]}
5... Nf6 {[%clk 0:03:03.2]} 6. Re1 {[%clk 0:03:02.5]} 6... O-O {[%clk
0:03:04.8]} 7. Nc3 {[%clk 0:03:00.9]} 7... d5 {[%clk 0:03:05.6]} 8. cxd5 {[%clk
0:03:00.8]} 8... exd5 {[%clk 0:03:07.5]} 9. d4 {[%clk 0:03:01.6]} 9... Nbd7
{[%clk 0:03:08.5]} 10. Bf4 {[%clk 0:03:01.8]} 10... Ne4 {[%clk 0:03:09.8]} 11.
Ne5 {[%clk 0:02:59.3]} 11... Nxc3 {[%clk 0:03:10]} 12. bxc3 {[%clk 0:03:00.1]}
12... Nxe5 {[%clk 0:03:11.5]} 13. Bxe5 {[%clk 0:03:00.9]} 13... c6 {[%clk
0:03:10.8]} 14. Qd3 {[%clk 0:02:59.6]} 14... Qd7 {[%clk 0:03:10.7]} 15. c4
{[%clk 0:02:58.5]} 15... Ba6 {[%clk 0:03:07.6]} 16. Rac1 {[%clk 0:02:49.9]}
16... Bxc4 {[%clk 0:03:08.1]} 17. Rxc4 {[%clk 0:02:50.3]} 17... dxc4 {[%clk
0:03:10]} 18. Qxc4 {[%clk 0:02:52]} 18... Rac8 {[%clk 0:03:11.3]} 19. Rc1 {[%clk
0:02:44.8]} 19... c5 {[%clk 0:02:55.2]} 20. d5 {[%clk 0:02:45.5]} 20... Bd6
{[%clk 0:02:53]} 21. Bb2 {[%clk 0:02:45.4]} 21... b5 {[%clk 0:02:50.6]} 22. Qh4
{[%clk 0:02:46.7]} 22... f5 {[%clk 0:02:46.4]} 23. e4 {[%clk 0:02:45.9]} 23...
Rce8 {[%clk 0:02:44.6]} 24. Bh3 {[%clk 0:02:26]} 24... c4 {[%clk 0:02:43.8]} 25.
Bxf5 {[%clk 0:02:25]} 25... Rxf5 {[%clk 0:02:44.3]} 26. exf5 {[%clk 0:02:26.9]}
26... Qxf5 {[%clk 0:02:45.9]} 27. Qd4 {[%clk 0:02:18.9]} 27... Be5 {[%clk
0:02:44.2]} 28. Qe3 {[%clk 0:02:19.3]} 28... Re7 {[%clk 0:02:36.1]} 29. Bxe5
{[%clk 0:01:50.4]} 29... Qxe5 {[%clk 0:02:31.3]} 30. Qc5 {[%clk 0:01:47.5]}
30... a6 {[%clk 0:02:26.6]} 31. Qc8+ {[%clk 0:01:33.8]} 31... Kf7 {[%clk
0:02:27.4]} 32. Rd1 {[%clk 0:01:28.9]} 32... Qd6 {[%clk 0:01:47.8]} 33. Qf5+
{[%clk 0:01:29.2]} 33... Qf6 {[%clk 0:01:48.7]} 34. Qh5+ {[%clk 0:01:18.9]}
34... Qg6 {[%clk 0:01:46.5]} 35. Qf3+ {[%clk 0:01:16.2]} 35... Qf6 {[%clk
0:01:47.3]} 36. Qh5+ {[%clk 0:01:17.2]} 36... Kf8 {[%clk 0:01:34]} 37. d6 {[%clk
0:01:17.7]} 37... Rd7 {[%clk 0:01:35.4]} 38. Re1 {[%clk 0:01:01.6]} 38... g6
{[%clk 0:01:35.4]} 39. Qh6+ {[%clk 0:00:54.5]} 39... Qg7 {[%clk 0:01:35.7]} 40.
Qe3 {[%clk 0:00:44.6]} 40... Qf7 {[%clk 0:01:33.6]} 41. Qd4 {[%clk 0:00:35.7]}
41... Kg8 {[%clk 0:01:34.4]} 42. Re4 {[%clk 0:00:34.9]} 42... h5 {[%clk
0:01:19.5]} 43. Qe3 {[%clk 0:00:29.6]} 43... Kg7 {[%clk 0:01:08.5]} 44. Re6
{[%clk 0:00:16.8]} 44... Qf5 {[%clk 0:00:59.8]} 45. Re7+ {[%clk 0:00:15.6]}
45... Kf6 {[%clk 0:01:01.1]} 46. Qd4+ {[%clk 0:00:11.1]} 46... Kg5 {[%clk
0:01:02.7]} 47. h4+ {[%clk 0:00:12.1]} 47... Kh6 {[%clk 0:01:04.3]} 48. Qh8#
{[%clk 0:00:13.7]} 1-0